bitfinex/quotes_BTCUSD_20240719
["timestamp","ask_amount","ask_price","bid_price","bid_amount"]
[1721396769171,0.00100001,64802.0,64801.0,2.19765701]
[1721396769422,0.00100001,64802.0,64801.0,1.64684011]
[1721396769644,1e-08,64802.0,64801.0,1.63284011]
[1721396769865,0.00100001,64802.0,64801.0,1.95547711]
[1721396770083,0.00100001,64802.0,64801.0,2.00547711]
[1721396770332,1e-08,64802.0,64801.0,2.54229423]
[1721396770812,0.00100001,64802.0,64801.0,2.55629423]
[1721396771293,0.00100001,64802.0,64801.0,2.5562409]
[1721396771531,0.00100001,64802.0,64801.0,2.5642409]
[1721396771532,0.00200001,64802.0,64801.0,2.5642409]
[1721396772028,0.00100001,64802.0,64801.0,2.5422409]
[1721396772265,1e-08,64802.0,64801.0,2.5422409]
[1721396772504,1e-08,64802.0,64801.0,2.7186409]
[1721396772740,0.00100001,64802.0,64801.0,2.7266409]
[1721396773543,0.00836,64833.0,64832.0,0.462733]
[1721396773786,0.00836,64833.0,64832.0,1.0767062]
[1721396774014,0.00836,64833.0,64832.0,1.3851952]
[1721396774854,0.00836,64833.0,64832.0,1.38515836]
[1721396774858,0.00836,64833.0,64832.0,1.52155836]
[1721396774861,0.00834,64851.0,64847.0,0.308415]
[1721396775313,0.00834,64851.0,64850.0,0.154202]
[1721396775316,0.00834,64851.0,64850.0,0.462606]
[1721396775825,0.00834,64851.0,64850.0,0.485606]
[1721396776056,0.00834,64851.0,64850.0,0.177202]
[1721396776310,0.00762433,64851.0,64850.0,0.485606]
[1721396776555,0.00762433,64851.0,64850.0,0.79401]
[1721396776800,0.00762433,64851.0,64850.0,0.177202]
[1721396777013,0.00762433,64851.0,64832.0,0.1364]
[1721396777014,0.1388,64850.0,64832.0,0.1364]
[1721396777228,0.1388,64850.0,64846.0,0.154211]
[1721396777447,0.1388,64850.0,64848.0,0.154206]
[1721396777448,0.0758,64850.0,64848.0,0.154206]
[1721396777880,0.00762433,64851.0,64850.0,0.154202]
[1721396778097,0.00762433,64851.0,64850.0,0.462606]
[1721396778971,0.00762433,64851.0,64850.0,1.23379574]
[1721396779188,0.00762433,64851.0,64850.0,1.25779574]
[1721396779857,0.00762433,64851.0,64850.0,1.38484188]
[1721396780073,0.00762433,64851.0,64850.0,1.56519974]
[1721396780292,0.00762433,64851.0,64850.0,1.97203815]
[1721396780524,0.00762433,64851.0,64850.0,2.07203815]
[1721396781417,0.00762433,64851.0,64850.0,1.48883415]
[1721396781625,0.00762433,64851.0,64850.0,1.48483415]
[1721396782536,0.00762433,64851.0,64850.0,1.49883415]
[1721396782984,0.00762433,64851.0,64850.0,1.66519974]
[1721396783217,0.00762433,64851.0,64850.0,1.86943069]
[1721396783446,0.00762433,64851.0,64850.0,1.44499574]
[1721396783664,0.00835,64858.0,64857.0,0.462555]
[1721396783873,0.00835,64858.0,64857.0,0.92195222]
[1721396784311,0.00835,64858.0,64857.0,0.485555]
[1721396784546,0.00835,64858.0,64850.0,0.26638174]
[1721396784547,0.00083,64851.0,64850.0,0.166202]
[1721396784774,0.217731,64851.0,64847.0,0.000913]
[1721396785000,0.541019,64848.0,64847.0,0.000913]
[1721396785216,1.11651374,64848.0,64847.0,0.000913]
[1721396785448,1.21651374,64848.0,64847.0,0.000913]
[1721396785691,0.154249,64830.0,64829.0,0.46584271]
[1721396785946,0.154249,64830.0,64811.0,0.46304871]
[1721396785947,0.05,64823.0,64811.0,0.46304871]
[1721396786208,0.60188074,64830.0,64811.0,0.46304871]
[1721396786209,0.343269,64822.0,64812.0,0.002794]
[1721396786459,0.343269,64822.0,64800.0,0.154319]
[1721396786460,0.15429,64813.0,64800.0,0.154319]
[1721396786706,0.15429,64813.0,64788.0,0.19221779]
[1721396786707,0.05,64809.0,64790.0,0.308688]
[1721396786946,0.154305,64807.0,64792.0,0.43683715]
[1721396787204,0.1976,64811.0,64779.0,0.19222864]
[1721396787205,0.1476,64811.0,64793.0,0.77172071]
[1721396787431,0.1476,64811.0,64785.0,0.07717479]
[1721396787432,0.0819,64811.0,64806.0,0.154306]
[1721396787853,0.0819,64811.0,64799.0,0.308646]
[1721396788074,0.154303,64808.0,64795.0,0.154332]
[1721396788319,0.154303,64808.0,64783.0,0.29100034]
[1721396788320,0.12717479,64804.0,64784.0,0.002794]
[1721396788534,0.308615,64806.0,64786.0,0.308704]
[1721396788535,0.0601,64803.0,64786.0,0.308704]
[1721396788750,0.0601,64803.0,64793.0,0.001]
[1721396788966,0.0601,64803.0,64794.0,0.002794]
[1721396789190,0.0601,64803.0,64793.0,0.001]
[1721396789412,0.214415,64803.0,64793.0,0.001]
[1721396789924,0.0817,64801.0,64793.0,0.001]
[1721396790136,0.05,64795.0,64793.0,0.001]
[1721396790571,0.154335,64794.0,64793.0,0.001]
[1721396790784,0.154335,64794.0,64782.0,0.157156]
[1721396791000,0.04664787,64808.0,64792.0,0.07717479]
[1721396791229,0.05,64809.0,64792.0,0.07717479]
[1721396791230,0.1441,64809.0,64799.0,0.07717479]
[1721396791448,0.46304871,64818.0,64799.0,0.07717479]
[1721396791449,0.0604,64816.0,64811.0,0.154294]
[1721396791677,0.0604,64816.0,64799.0,0.07717479]
[1721396791678,0.46304871,64812.0,64795.0,0.002]
[1721396791908,0.308619,64805.0,64795.0,0.002]
[1721396792167,0.05,64804.0,64795.0,0.002]
[1721396792390,0.308627,64803.0,64793.0,0.001]
[1721396792623,0.308619,64805.0,64787.0,0.308702]
[1721396792624,0.15431,64805.0,64787.0,0.308702]
[1721396792875,0.15431,64805.0,64783.0,0.48869079]
[1721396792876,0.04305983,64822.0,64804.0,0.07717479]
[1721396793112,0.006,64812.0,64811.0,0.154294]
[1721396793334,0.006,64812.0,64811.0,1.31161753]
[1721396793558,0.0663,64825.0,64824.0,0.46279]
[1721396794086,0.0663,64825.0,64824.0,0.771317]
[1721396794322,0.2748,64842.0,64828.0,0.308508]
[1721396794323,0.14,64837.0,64828.0,0.308508]
[1721396794567,0.14,64837.0,64836.0,0.154235]
[1721396794805,0.14,64837.0,64829.0,0.002794]
[1721396794806,0.14,64837.0,64831.0,0.308492]
[1721396795066,0.14,64837.0,64836.0,0.154235]
[1721396795303,0.1432,64843.0,64839.0,0.154225]
[1721396795550,0.1432,64843.0,64840.0,0.002794]
[1721396795799,0.1432,64843.0,64839.0,0.308453]
[1721396796059,0.1432,64843.0,64839.0,0.462679]
[1721396796296,0.1432,64843.0,64839.0,0.154226]
[1721396796545,0.1432,64843.0,64840.0,0.002794]
[1721396796788,0.1432,64843.0,64833.0,0.002794]
[1721396797046,0.1432,64843.0,64825.0,0.308518]
[1721396797047,0.07717479,64839.0,64830.0,0.002794]
[1721396797292,0.07717479,64839.0,64825.0,0.308518]
[1721396797293,0.07717479,64839.0,64827.0,0.308512]
[1721396797589,0.07717479,64839.0,64829.0,0.154251]
[1721396797836,0.15423,64838.0,64830.0,0.002794]
[1721396798089,0.29758174,64843.0,64832.0,0.154243]
[1721396798330,0.29758174,64843.0,64832.0,0.154244]
[1721396798559,0.29758174,64843.0,64833.0,0.002794]
[1721396798560,0.154222,64842.0,64833.0,0.002794]
[1721396798797,0.29758174,64843.0,64832.0,0.154243]
[1721396799037,0.154223,64841.0,64833.0,0.002794]
[1721396799274,0.154223,64841.0,64830.0,0.154249]
[1721396799275,0.154223,64841.0,64831.0,0.002794]
[1721396799551,0.1482,64843.0,64832.0,0.308485]
[1721396799795,0.005,64843.0,64842.0,0.462663]
[1721396800012,0.005,64843.0,64842.0,1.079547]
[1721396800229,0.00835,64858.0,64850.0,0.462606]
[1721396800660,0.00835,64858.0,64850.0,0.77101]
[1721396801530,0.00835,64858.0,64850.0,0.462606]
[1721396801757,0.00835,64858.0,64850.0,0.77101]
[1721396801971,0.00835,64858.0,64850.0,1.56519974]
[1721396803053,0.00835,64858.0,64850.0,1.66519974]
[1721396803523,0.00183,64851.0,64850.0,1.67719974]
[1721396804376,0.00183,64851.0,64850.0,1.36879574]
[1721396805041,0.00183,64851.0,64850.0,1.06039174]
[1721396805734,0.00183,64851.0,64850.0,0.474606]
[1721396806397,0.00183,64851.0,64850.0,1.24579574]
[1721396807087,0.00183,64851.0,64850.0,1.70522504]
[1721396807513,0.00835,64858.0,64850.0,1.70522504]
[1721396807514,0.00835,64858.0,64857.0,0.770925]
[1721396807732,0.00835,64858.0,64857.0,0.462555]
[1721396807946,0.00835,64858.0,64850.0,0.18938174]
[1721396807947,0.00835,64858.0,64851.0,0.154198]
[1721396808156,0.07717479,64857.0,64850.0,0.023]
[1721396808698,0.1377,64856.0,64850.0,0.023]
[1721396808924,0.154191,64855.0,64850.0,0.023]
[1721396809183,0.154191,64855.0,64844.0,0.154214]
[1721396809400,0.07717479,64850.0,64829.0,0.0666]
[1721396809622,0.07717479,64850.0,64832.0,0.46304871]
[1721396809623,0.15438174,64849.0,64832.0,0.46304871]
[1721396809825,0.15438174,64849.0,64837.0,0.308465]
[1721396810030,0.15438174,64849.0,64840.0,0.154225]
[1721396810445,0.106,64855.0,64844.0,0.001]
[1721396810643,0.106,64855.0,64848.0,0.154206]
[1721396810857,0.002,64850.0,64849.0,0.92540174]
[1721396811061,0.002,64850.0,64849.0,1.23380974]
[1721396811548,0.002,64850.0,64849.0,1.56521774]
[1721396812753,0.00835,64858.0,64857.0,1.387665]
[1721396813021,0.00835,64858.0,64857.0,1.56504674]
[1721396814425,0.00935,64858.0,64857.0,1.62904674]
[1721396814654,0.01035,64858.0,64857.0,1.59304674]
[1721396815806,0.00935,64858.0,64857.0,1.57904674]
[1721396816021,0.00835,64858.0,64857.0,1.57904674]
[1721396816317,0.00935,64858.0,64857.0,1.59304674]
[1721396816530,0.00835,64858.0,64857.0,1.57904674]
[1721396816749,0.00835,64858.0,64857.0,1.56504674]
[1721396816945,0.00935,64858.0,64857.0,1.59304674]
[1721396817303,0.00835,64858.0,64857.0,1.56504674]
[1721396817526,0.00835,64858.0,64857.0,1.87341674]
[1721396817699,0.00935,64858.0,64857.0,1.90141674]
[1721396818914,0.00935,64858.0,64857.0,2.00141674]
[1721396819127,0.00935,64858.0,64857.0,2.26221674]
[1721396819352,0.00835,64858.0,64857.0,2.32591674]
[1721396819559,0.00835,64858.0,64857.0,2.33991674]
[1721396819965,0.00835,64858.0,64857.0,2.32610234]
[1721396820282,0.00835,64858.0,64857.0,2.29010234]
[1721396820557,0.00835,64885.0,64884.0,1.387089]
[1721396820710,0.00835,64885.0,64884.0,1.77697074]
[1721396820910,0.00835,64885.0,64884.0,1.56447074]
[1721396821736,0.00835,64885.0,64884.0,2.13521274]
[1721396821947,0.00835,64885.0,64884.0,2.23521274]
[1721396822158,0.00835,64885.0,64884.0,2.54866062]
[1721396822576,0.00084,64903.0,64902.0,0.154078]
[1721396822780,0.00084,64903.0,64902.0,0.63961574]
[1721396822982,0.00084,64903.0,64902.0,1.23292774]
[1721396823396,0.00084,64903.0,64902.0,1.56408374]
[1721396823596,0.00084,64903.0,64902.0,1.38386039]
[1721396823808,0.00084,64903.0,64902.0,1.39786039]
[1721396824028,0.00084,64903.0,64902.0,1.70601639]
[1721396824465,0.00084,64903.0,64902.0,1.69200995]
[1721396824877,0.00084,64903.0,64902.0,1.38385395]
[1721396825082,0.00084,64903.0,64902.0,1.69200995]
[1721396826216,0.00084,64903.0,64902.0,1.70600995]
[1721396826715,0.00084,64903.0,64902.0,1.69200995]
[1721396827192,0.00084,64903.0,64902.0,1.70600995]
[1721396827671,0.00084,64903.0,64902.0,1.3838575]
[1721396827908,0.00084,64903.0,64902.0,1.22047576]
[1721396828205,0.00084,64903.0,64902.0,1.20647576]
[1721396828704,0.00084,64903.0,64902.0,1.6690135]
[1721396829125,0.00084,64903.0,64902.0,1.7060135]
[1721396829753,0.00084,64903.0,64902.0,1.7200135]
[1721396830426,0.00084,64903.0,64902.0,1.7060135]
[1721396830728,0.00084,64903.0,64902.0,1.41186527]
[1721396830940,0.00084,64903.0,64902.0,1.38886527]
[1721396831159,0.00084,64903.0,64902.0,1.68302127]
[1721396831405,0.00084,64903.0,64902.0,1.37486527]
[1721396831646,0.00084,64903.0,64902.0,0.91232753]
[1721396831891,0.00084,64903.0,64902.0,0.89832753]
[1721396832139,0.00084,64903.0,64902.0,1.37486527]
[1721396833797,0.00084,64903.0,64902.0,1.37486456]
[1721396834069,0.14494,64903.0,64902.0,0.92632682]
[1721396834315,0.14494,64903.0,64902.0,0.61818057]
[1721396834555,0.14494,64903.0,64902.0,0.89833657]
[1721396834781,0.14494,64903.0,64902.0,1.22049257]
[1721396835197,0.14494,64903.0,64902.0,0.91233657]
[1721396835661,0.14494,64903.0,64902.0,0.014]
[1721396835938,0.14494,64903.0,64902.0,0.154078]
[1721396836147,0.14494,64903.0,64902.0,0.77039]
[1721396836367,0.14494,64903.0,64902.0,0.154078]
[1721396836587,0.14494,64903.0,64898.0,0.308174]
[1721396836799,0.14494,64903.0,64899.0,0.12796441]
[1721396837011,0.14494,64903.0,64899.0,0.154084]
[1721396837233,0.14494,64903.0,64886.0,0.49194378]
[1721396837437,0.14494,64903.0,64902.0,0.154078]
[1721396837660,0.14494,64903.0,64902.0,0.60419254]
[1721396837886,0.14494,64903.0,64902.0,0.91234854]
[1721396838093,0.14494,64903.0,64902.0,0.92634854]
[1721396838302,0.14494,64903.0,64902.0,1.23450454]
[1721396838517,0.00084,64903.0,64902.0,1.37488628]
[1721396838744,0.00833,64912.0,64911.0,0.770285]
[1721396838962,0.00833,64912.0,64911.0,0.59012954]
[1721396839168,0.00833,64912.0,64911.0,0.89824354]
[1721396839381,0.00833,64912.0,64911.0,1.20635754]
[1721396839587,0.00833,64912.0,64911.0,0.8982201]
[1721396839800,0.13076,64916.0,64915.0,0.462142]
[1721396840020,0.13076,64916.0,64915.0,0.8981721]
[1721396840232,0.13076,64916.0,64915.0,0.1279351]
[1721396841531,0.13076,64916.0,64912.0,0.154054]
[1721396841756,0.13076,64916.0,64913.0,0.12794545]
[1721396841967,0.13076,64916.0,64914.0,0.12794545]
[1721396842186,0.13076,64916.0,64915.0,0.12794545]
[1721396842615,0.13076,64916.0,64915.0,0.1279453]
[1721396842827,0.13076,64916.0,64911.0,0.161056]
[1721396842828,1.10736674,64916.0,64911.0,0.007]
[1721396843043,0.29668174,64915.0,64903.0,0.002794]
[1721396843254,0.29668174,64915.0,64904.0,0.43609859]
[1721396843509,0.29668174,64915.0,64899.0,0.4737]
[1721396843510,0.1423,64915.0,64905.0,0.13074659]
[1721396843727,0.15438174,64914.0,64906.0,0.12795259]
[1721396843953,0.1423,64915.0,64907.0,0.12795259]
[1721396844181,0.1423,64915.0,64914.0,0.154049]
[1721396844380,0.1423,64915.0,64914.0,0.59010059]
[1721396844817,0.1423,64915.0,64914.0,0.89819959]
[1721396845252,0.0794,64915.0,64914.0,0.89819959]
[1721396845728,0.0794,64915.0,64914.0,0.59007542]
[1721396845956,0.0824,64915.0,64914.0,0.89817442]
[1721396846406,0.0794,64915.0,64914.0,0.89817442]
[1721396846622,0.0794,64915.0,64914.0,0.90117442]
[1721396846851,0.0794,64915.0,64914.0,0.90617442]
[1721396847064,0.0794,64915.0,64914.0,0.59807542]
[1721396847295,0.06873,64920.0,64919.0,0.462114]
[1721396847511,0.06873,64920.0,64919.0,0.59004142]
[1721396847725,0.06873,64920.0,64919.0,0.89811742]
[1721396847934,0.06873,64920.0,64919.0,0.59004142]
[1721396849016,0.06873,64920.0,64919.0,0.12792742]
[1721396849499,0.39220274,64920.0,64919.0,0.12792742]
[1721396849720,0.22311174,64920.0,64919.0,0.12792742]
[1721396850160,0.06873,64920.0,64919.0,0.12792742]
[1721396850403,0.27311174,64920.0,64919.0,0.12792742]
[1721396850611,1.17398874,64920.0,64919.0,0.12792742]
[1721396851026,1.12398874,64920.0,64919.0,0.12792742]
[1721396851719,0.154072,64905.0,64904.0,0.01820594]
[1721396851922,0.154077,64903.0,64892.0,0.154101]
[1721396852132,0.154077,64903.0,64890.0,0.32641894]
[1721396852133,0.154076,64903.0,64890.0,0.308213]
[1721396852357,0.154076,64903.0,64893.0,0.154098]
[1721396852567,0.154076,64903.0,64894.0,0.12797603]
[1721396852788,0.1434,64905.0,64888.0,0.000913]
[1721396852789,0.1434,64905.0,64895.0,0.12797603]
[1721396853000,0.1434,64905.0,64888.0,0.309135]
[1721396853001,0.15438174,64904.0,64898.0,0.154087]
[1721396853238,0.1434,64905.0,64901.0,0.154079]
[1721396853677,0.1434,64905.0,64889.0,0.002794]
[1721396853678,0.003,64903.0,64894.0,0.308194]
[1721396853903,0.003,64903.0,64895.0,0.12797018]
[1721396854122,0.20438174,64904.0,64895.0,0.12797018]
[1721396854123,0.15438174,64904.0,64896.0,0.12797018]
[1721396854332,0.15438174,64904.0,64895.0,0.154093]
[1721396854547,0.15438174,64904.0,64892.0,0.308204]
[1721396854548,0.15438174,64904.0,64901.0,0.001]
[1721396855214,0.30845574,64904.0,64901.0,0.001]
[1721396855431,0.154077,64903.0,64901.0,0.001]
[1721396855635,0.15438174,64904.0,64901.0,0.001]
[1721396856068,0.15438174,64904.0,64897.0,0.15409]
[1721396856543,0.1434,64905.0,64900.0,0.154082]
[1721396856761,0.15438174,64904.0,64895.0,0.001]
[1721396856971,0.1434,64905.0,64888.0,0.000913]
[1721396856972,0.1434,64905.0,64896.0,0.308183]
[1721396857192,0.1434,64905.0,64899.0,0.154084]
[1721396857193,0.005,64903.0,64899.0,0.154084]
[1721396857404,0.005,64903.0,64895.0,0.001]
[1721396857671,0.003,64904.0,64901.0,0.001]
[1721396858560,0.462234,64902.0,64901.0,0.001]
[1721396858783,1.47292774,64902.0,64901.0,0.001]
[1721396858989,0.652327,64889.0,64885.0,0.46304871]
[1721396859211,0.75670874,64889.0,64878.0,0.46304871]
[1721396859432,1.11492674,64889.0,64872.0,0.308294]
[1721396859664,1.11492674,64889.0,64874.0,0.308285]
[1721396859665,0.75670874,64889.0,64874.0,0.308285]
[1721396859874,0.0789,64889.0,64881.0,0.308253]
[1721396860088,0.0789,64889.0,64875.0,0.002794]
[1721396860089,0.0789,64889.0,64875.0,0.08025713]
[1721396860307,0.0819,64889.0,64888.0,0.001913]
[1721396860520,0.0819,64889.0,64888.0,0.464247]
[1721396860521,0.003,64889.0,64888.0,0.464247]
[1721396860965,0.8518,64896.0,64888.0,0.000913]
[1721396861169,0.0783,64896.0,64888.0,0.001913]
[1721396861614,0.0783,64896.0,64892.0,0.308199]
[1721396861829,0.0783,64896.0,64890.0,0.308212]
[1721396862039,0.0783,64896.0,64891.0,0.308206]
[1721396862242,0.0783,64896.0,64888.0,0.001913]
[1721396862458,0.07717479,64894.0,64888.0,0.000913]
[1721396862689,0.154106,64890.0,64888.0,0.000913]
[1721396862905,0.15738174,64889.0,64888.0,0.000913]
[1721396863325,0.15438174,64889.0,64888.0,0.000913]
[1721396863751,0.15438174,64889.0,64888.0,0.001913]
[1721396864202,0.15438174,64889.0,64888.0,0.000913]
[1721396864419,0.154117,64886.0,64858.0,0.0606]
[1721396864634,0.15438174,64885.0,64874.0,0.308288]
[1721396864866,0.1384,64889.0,64878.0,0.308268]
[1721396865073,0.1384,64889.0,64874.0,0.308288]
[1721396865074,0.07717479,64887.0,64874.0,0.308288]
[1721396865311,0.34278174,64889.0,64865.0,0.00308287]
[1721396865312,0.1384,64889.0,64865.0,0.00308287]
[1721396865524,0.29278174,64889.0,64880.0,0.154129]
[1721396866163,0.29278174,64889.0,64888.0,0.004]
[1721396866164,0.29259626,64889.0,64888.0,0.004]
[1721396866630,0.29259626,64889.0,64888.0,0.008]
[1721396867047,0.29259626,64889.0,64888.0,0.004]
[1721396867491,0.29259626,64889.0,64888.0,0.005]
[1721396867492,0.30459626,64889.0,64888.0,0.005]
[1721396867920,0.15021452,64889.0,64888.0,0.005]
[1721396868142,0.012,64889.0,64888.0,0.771557]
[1721396868341,0.0611,64902.0,64898.0,0.154087]
[1721396868734,0.0611,64902.0,64896.0,0.462272]
[1721396868977,0.0611,64902.0,64896.0,0.308182]
[1721396869200,0.0611,64902.0,64897.0,0.002794]
[1721396869411,0.0611,64902.0,64896.0,0.308182]
[1721396869629,0.0611,64902.0,64894.0,0.308193]
[1721396869630,0.0611,64902.0,64894.0,0.308191]
[1721396869847,0.0611,64902.0,64888.0,0.309223]
[1721396870053,0.0611,64902.0,64898.0,0.154087]
[1721396870266,0.0611,64902.0,64896.0,0.308183]
[1721396870520,0.0611,64902.0,64895.0,0.154094]
[1721396870730,0.154087,64898.0,64897.0,0.001]
[1721396870942,0.61664374,64898.0,64897.0,0.001]
[1721396871152,0.61664374,64898.0,64886.0,0.154115]
[1721396871153,0.0803,64895.0,64886.0,0.308232]
[1721396871355,0.0803,64895.0,64883.0,0.308246]
[1721396871356,0.0803,64895.0,64888.0,0.154109]
[1721396871562,0.0803,64895.0,64885.0,0.308236]
[1721396871826,0.0803,64895.0,64888.0,0.154111]
[1721396872040,0.0803,64895.0,64880.0,0.308259]
[1721396872041,0.07717479,64892.0,64884.0,0.15412]
[1721396872253,0.23468174,64895.0,64884.0,0.30824]
[1721396872502,0.0803,64895.0,64875.0,0.07717479]
[1721396872723,0.0701,64902.0,64894.0,0.308194]
[1721396872929,0.0701,64902.0,64897.0,0.154089]
[1721396873136,0.0701,64902.0,64896.0,0.154092]
[1721396873137,0.09017349,64902.0,64896.0,0.154092]
[1721396873352,0.09017349,64902.0,64894.0,0.154095]
[1721396873353,0.0701,64902.0,64894.0,0.154095]
[1721396873575,0.0611,64902.0,64895.0,0.154095]
[1721396874033,0.0611,64902.0,64878.0,0.002794]
[1721396874034,0.154095,64895.0,64884.0,0.002]
[1721396874265,0.15438174,64895.0,64885.0,0.308237]
[1721396874530,0.15438174,64895.0,64883.0,0.308245]
[1721396874776,0.15438174,64895.0,64894.0,0.001]
[1721396875313,0.34038089,64895.0,64867.0,0.0787]
[1721396875606,0.34038089,64895.0,64875.0,0.46304871]
[1721396875607,0.154125,64883.0,64875.0,0.46304871]
[1721396875859,0.154125,64883.0,64867.0,0.0615]
[1721396875860,0.30850974,64882.0,64871.0,0.15415]
[1721396876097,0.30850974,64882.0,64865.0,0.308331]
[1721396876098,0.15438174,64882.0,64870.0,0.308308]
[1721396876308,0.15438174,64882.0,64874.0,0.154143]
[1721396876546,0.295219,64885.0,64881.0,0.154127]
[1721396876547,0.1411,64885.0,64881.0,0.154127]
[1721396876804,0.1411,64885.0,64865.0,0.308332]
[1721396877049,0.07717479,64884.0,64866.0,0.16025834]
[1721396877286,0.0765,64885.0,64878.0,0.30827]
[1721396877771,0.0765,64885.0,64883.0,0.154122]
[1721396878008,0.0765,64885.0,64881.0,0.154126]
[1721396878009,0.0825,64885.0,64881.0,0.154126]
[1721396878238,0.0905,64885.0,64866.0,0.15438174]
[1721396878488,0.0845,64885.0,64880.0,0.15413]
[1721396878974,0.0845,64885.0,64878.0,0.30827]
[1721396878975,0.0825,64885.0,64881.0,0.154127]
[1721396879423,0.0825,64885.0,64878.0,0.30827]
[1721396879632,0.0825,64885.0,64880.0,0.154129]
[1721396879836,0.07717479,64884.0,64866.0,0.15438174]
[1721396880047,0.0765,64885.0,64878.0,0.154134]
[1721396880264,0.23155653,64884.0,64870.0,0.308307]
[1721396880473,0.15438174,64884.0,64874.0,0.308286]
[1721396880896,0.0825,64885.0,64876.0,0.308278]
[1721396881113,0.0765,64885.0,64873.0,0.0608]
[1721396881331,0.0825,64885.0,64880.0,0.15413]
[1721396881549,0.0825,64885.0,64884.0,0.462363]
[1721396881550,0.006,64885.0,64884.0,0.462363]
[1721396882005,0.0771,64893.0,64886.0,0.154114]
[1721396882221,0.0771,64893.0,64884.0,0.308242]
[1721396882431,0.0771,64893.0,64886.0,0.30823]
[1721396882640,0.0771,64893.0,64890.0,0.154105]
[1721396882865,0.0771,64893.0,64877.0,0.0752]
[1721396882866,0.0771,64893.0,64886.0,0.30823]
[1721396883089,0.0771,64893.0,64878.0,0.001]
[1721396883090,0.009,64885.0,64878.0,0.001]
[1721396883366,0.009,64885.0,64882.0,0.154125]
[1721396883568,0.009,64885.0,64878.0,0.001]
[1721396883993,0.015,64885.0,64884.0,0.001]
[1721396884426,0.009,64885.0,64884.0,0.001]
[1721396884849,0.015,64885.0,64884.0,0.463363]
[1721396885296,0.015,64885.0,64884.0,0.771605]
[1721396885504,0.009,64885.0,64884.0,0.771605]
[1721396885717,0.015,64885.0,64884.0,0.771605]
[1721396886632,0.006,64885.0,64884.0,0.770605]
[1721396886860,0.013,64885.0,64884.0,0.770605]
[1721396887067,0.007,64885.0,64884.0,0.770605]
[1721396887335,0.0771,64893.0,64891.0,0.154103]
[1721396887553,0.0771,64893.0,64892.0,0.154102]
[1721396887765,0.0824,64899.0,64894.0,0.154096]
[1721396887978,0.0824,64899.0,64880.0,0.0639]
[1721396887979,0.23678174,64899.0,64880.0,0.0639]
[1721396888184,0.04113338,64898.0,64881.0,0.00587611]
[1721396888397,0.0824,64899.0,64893.0,0.154098]
[1721396888398,0.01702275,64897.0,64893.0,0.154098]
[1721396888601,0.02411029,64898.0,64893.0,0.154098]
[1721396888809,0.01696447,64897.0,64893.0,0.154098]
[1721396889029,0.0824,64899.0,64893.0,0.154098]
[1721396889241,0.04107344,64898.0,64893.0,0.154098]
[1721396889466,0.0824,64899.0,64892.0,0.308201]
[1721396889672,0.0824,64899.0,64898.0,0.154087]
[1721396890122,0.0824,64899.0,64895.0,0.308187]
[1721396890345,0.0824,64899.0,64892.0,0.001]
[1721396890559,0.0824,64899.0,64883.0,0.0775]
[1721396890560,0.0824,64899.0,64891.0,0.154104]
[1721396890774,0.0824,64899.0,64883.0,0.0775]
[1721396890775,0.014,64898.0,64895.0,0.154094]
[1721396891203,0.014,64898.0,64881.0,0.002794]
[1721396891204,0.014,64898.0,64880.0,0.066694]
[1721396891410,0.243486,64899.0,64889.0,0.308218]
[1721396891411,0.0894,64899.0,64889.0,0.308218]
[1721396891651,0.0894,64899.0,64882.0,0.30825]
[1721396891652,0.154099,64893.0,64892.0,0.001]
[1721396891864,0.154099,64893.0,64884.0,0.15412]
[1721396891865,0.32540041,64893.0,64884.0,0.15412]
[1721396892071,0.32540041,64893.0,64885.0,0.002794]
[1721396892072,0.30848074,64893.0,64885.0,0.002794]
[1721396892332,0.01692461,64892.0,64885.0,0.002794]
[1721396892551,0.15438174,64893.0,64885.0,0.156912]
[1721396892765,0.42321853,64902.0,64885.0,0.156912]
[1721396892766,0.0824,64899.0,64885.0,0.002794]
[1721396892984,0.0773,64905.0,64898.0,0.154087]
[1721396893198,0.0773,64905.0,64886.0,0.15438174]
[1721396893411,0.011,64898.0,64895.0,0.308188]
[1721396893661,0.011,64898.0,64887.0,0.002794]
[1721396893873,0.011,64898.0,64895.0,0.154094]
[1721396893874,0.015,64898.0,64895.0,0.154094]
[1721396894087,0.015,64898.0,64880.0,0.066694]
[1721396894302,0.011,64898.0,64895.0,0.154093]
[1721396894510,0.011,64898.0,64881.0,0.30535264]
[1721396894511,0.011,64898.0,64897.0,0.15409]
[1721396894936,0.015,64898.0,64897.0,0.46227]
[1721396895580,0.011,64898.0,64897.0,0.46227]
[1721396895790,0.011,64898.0,64897.0,0.15409]
[1721396896010,0.011,64898.0,64897.0,0.46227]
[1721396896455,0.011,64898.0,64897.0,0.15409]
[1721396896667,0.011,64898.0,64895.0,0.154093]
[1721396896875,0.015,64898.0,64896.0,0.156884]
[1721396897102,0.015,64898.0,64897.0,0.15409]
[1721396897310,0.015,64898.0,64897.0,0.46227]
[1721396897768,0.011,64898.0,64895.0,0.462281]
[1721396897997,0.15409,64897.0,64896.0,0.002794]
[1721396898209,0.22356704,64897.0,64884.0,0.002794]
[1721396898428,0.04615762,64895.0,64885.0,0.308237]
[1721396898629,0.04615762,64895.0,64886.0,0.002794]
[1721396898846,0.04615762,64895.0,64887.0,0.308227]
[1721396899073,0.04615756,64895.0,64890.0,0.154105]
[1721396899293,0.04615756,64895.0,64891.0,0.002794]
[1721396899503,0.04615756,64894.0,64890.0,0.154105]
[1721396899918,0.04615756,64894.0,64885.0,0.308236]
[1721396899919,0.04615756,64894.0,64889.0,0.308216]
[1721396900129,0.04615756,64894.0,64890.0,0.002794]
[1721396900342,0.04615756,64895.0,64890.0,0.154104]
[1721396900552,0.04615756,64894.0,64891.0,0.002794]